Cogmind - Beta 13 @@@ ROGUE MODE // 2024.03.31 @ 23:52:40 Player: Sixten Result: Destroyed by Y-45 Defender with Beam Rifle Performance ------------- Evolutions (1) 500 Regions Visited (2) 400 Robots Destroyed (19) 95 Value Destroyed (667) 667 Prototype IDs (1) 20 Alien Tech Used (0) 0 Bonus (19) 19 TOTAL SCORE: 1701 Bonus ------- High Alert Combat Kills 19 Cogmind --------- Core Integrity 0/400 Matter 103/300 Energy 100/100 System Corruption 3% Temperature Cool (27) Movement Core (200) Ox3 Location -9/Materials Parts ------- > --- POWER (1) -------- (None) > --- PROPULSION (4) --- (None) > --- UTILITY (2) ------ Medium Storage Unit > --- WEAPON (2) ------- (None) > --- INVENTORY (10) --- Light Nuclear Core Peak State ------------ > --- POWER ------------ Light Nuclear Core > --- PROPULSION ------- Aluminum Leg Aluminum Leg Aluminum Leg > --- UTILITY ---------- Medium Storage Unit > --- WEAPON ----------- Small Laser Grenade Launcher > --- INVENTORY -------- Light Nuclear Core [Rating: 9] Favorites ----------- Power Ion Engine Engine Ion Engine Power Core Light Nuclear Core Propulsion Aluminum Leg Leg Aluminum Leg Utility Medium Storage Unit Storage Medium Storage Unit Weapon Small Laser Energy Gun Small Laser Ballistic Gun Assault Rifle Launcher Grenade Launcher Build | -11 -10 -9 ------- Run | Yrd Mat Mat Slots Evolved 2 | . . 2 Power . | . . . Propulsion 2 | . . 2 Utility . | . . . Weapon . | . . . Parts Attached 14 | 6 4 4 Power 3 | 1 . 2 Engine 2 | 1 . 1 Core 1 | . . 1 Reactor . | . . . Propulsion 5 | 2 2 1 Treads . | . . . Leg 5 | 2 2 1 Wheel . | . . . Hover . | . . . Flight . | . . . Utility 1 | . 1 . Device . | . . . Storage 1 | . 1 . Processor . | . . . Hackware . | . . . Protection . | . . . Artifact . | . . . Weapon 5 | 3 1 1 Energy Gun 3 | 2 1 . Energy Cannon . | . . . Ballistic Gun 1 | 1 . . Ballistic Cannon . | . . . Launcher 1 | . . 1 Special Weapon . | . . . Impact Weapon . | . . . Slashing Weapon . | . . . Piercing Weapon . | . . . Special Melee Weapon . | . . . Unidentified Prototypes 1 | . . 1 Parts Lost 10 | . 4 6 Power 2 | . . 2 Propulsion 5 | . 2 3 Utility . | . . . Weapon 3 | . 2 1 Highest Loss Streak 5 | . 4 5 To Critical Strikes . | . . . Average Slot Usage (%) 61 | . 65 55 Engine 8 | . 14 1 Core 1 | . . 4 Leg 23 | . 26 20 Storage 5 | . 1 11 Energy Gun 12 | . 14 9 Ballistic Gun 5 | . 9 . Launcher 3 | . . 8 Naked Turns . | . . . Heaviest Build 19 | 9 16 19 Greatest Support 30 | 20 20 30 Greatest Overweight (x) 5 | . 1 5 Average Overweight (x) . | . . . Largest Inventory Capacity 10 | 5 10 10 Average Capacity 7 | 5 5 10 Most Carried 5 | 1 5 4 Average Carried 2 | . 3 2 Final Capacity 10 | 5 10 10 Final Carried 3 | 1 3 1 Class Distribution -------------------- 92% | Mutant 7% | Scavenger-Mutant Dominant Class ---------------- Mutant | -10/Materials Mutant | -9/Materials Resources | -11 -10 -9 ----------- Run | Yrd Mat Mat Matter Collected 354 | 151 203 . Remotely . | . . . Salvage Created 603 | . 301 302 Parts 42 | . 15 27 Haulers Intercepted 1 | . . 1 Recyclers Shooed . | . . . Parts Field Recycled . | . . . Retrieved Matter . | . . . Parts Self-Destructed . | . . . Prevented . | . . . Kills | -11 -10 -9 ------- Run | Yrd Mat Mat Combat Hostiles Destroyed 14 | . 7 7 Guns 7 | . 7 . AOE 7 | . . 7 Classes Destroyed 7 | . 1 6 Worker 1 | . . 1 Builder 1 | . . 1 Hauler 1 | . . 1 Recycler 1 | . . 1 Watcher 1 | . . 1 Grunt 12 | . 7 5 Sentry 2 | . . 2 Best Kill Streak 4 | . 3 4 Combat Bots Only 3 | . 3 3 Max Kills in Single Turn 2 | . 1 2 Gunslinging . | . . . Exploded 2 | . . 2 Melee . | . . . Uniques/NPCs Destroyed . | . . . Combat | -11 -10 -9 -------- Run | Yrd Mat Mat Hostile Shots Fired 125 | . 58 67 Missed 32 | . 12 20 Damage Taken 1586 | . 599 987 Core 572 | . 168 404 Absorbed by Shields . | . . . Core Remaining (%) 66 | 100 32 . Volleys Fired 65 | . 41 24 Largest 2 | . 2 2 Hottest 70 | . 70 70 Shots Fired 110 | . 69 41 Gun 93 | . 69 24 Cannon . | . . . Launcher 17 | . . 17 Special . | . . . Kinetic 28 | . 28 . Thermal 65 | . 41 24 Explosive 17 | . . 17 Electromagnetic . | . . . Robot Hit Streak 12 | . 12 4 Robot Miss Streak 9 | . 3 9 Penetration Max . | . . . Secondary Targets 1 | . 1 . Max Gunslinging Chain 1 | . 1 . Shots Hit Robots 62 | . 48 14 Core Hits 39 | . 16 23 Critical Kills . | . . . Critical Parts Destroyed . | . . . Critical Strikes 2 | . 2 . Burn 2 | . 2 . Melee Attacks . | . . . Impact . | . . . Slashing . | . . . Piercing . | . . . Sneak Attacks . | . . . Combat Hostiles . | . . . Follow-up Attacks . | . . . Damage Inflicted 1306 | . 514 792 Guns 594 | . 510 84 Cannons . | . . . Explosions 708 | . . 708 Melee . | . . . Ramming 4 | . 4 . Kinetic 196 | . 196 . Thermal 659 | . 314 345 Explosive 447 | . . 447 Electromagnetic . | . . . Impact . | . . . Slashing . | . . . Piercing . | . . . Highest Corruption 3 | . . 3 Average Corruption 3 | . . 3 Corruption Purged . | . . . Corruption Blocked . | . . . Effects 4 | . . 4 Message Errors 1 | . . 1 Matter Fused 1 | . . 1 Data Loss (major) 2 | . . 2 Overload Shots . | . . . Overflow Damage 137 | . . 137 Projectiles . | . . . Explosions 137 | . . 137 Melee . | . . . Knockbacks . | . . . Impact . | . . . Kinetic . | . . . Secondary . | . . . Self-Inflicted Damage 169 | . . 169 Shots 6 | . . 6 Rammed . | . . . Targets Rammed 1 | . 1 . Kicked 1 | . 1 . Crushed . | . . . Highest Temperature 206 | . 206 89 Average Temperature 80 | . 94 35 Received Heat Transfer 555 | . 336 219 Siege Activations . | . . . Robots Corrupted . | . . . Combat Hostiles . | . . . Parts Fried . | . . . Impact Corruptions . | . . . Robots Melted . | . . . Combat Hostiles . | . . . Parts Melted 4 | . 4 . Heat Transferred 1402 | . 1002 400 Parts Sabotaged . | . . . Parts Stolen . | . . . Parts Stripped . | . . . Power Chain Reactions . | . . . Alert | -11 -10 -9 ------- Run | Yrd Mat Mat Peak Influence 489 | . 160 489 Initial . | . . . Average 142 | . 95 250 Maximum Alert Level 2 | . . 2 Low Security (%) 75 | 100 100 34 Level 1 16 | . . 44 Level 2 7 | . . 21 Level 3 . | . . . Level 4 . | . . . Level 5 . | . . . High Security . | . . . Max Security . | . . . Squads Dispatched 1 | . 1 . Investigation . | . . . Extermination . | . . . Reinforcement 1 | . 1 . Assault . | . . . Garrison . | . . . Intercept . | . . . Searches Triggered . | . . . Construction Impeded . | . . . Haulers Reinforced . | . . . Active Scanning Responses . | . . . Cargo Convoy Interrupts . | . . . Stealth | -11 -10 -9 --------- Run | Yrd Mat Mat Distress Signals 1 | . 1 . Communications Jammed . | . . . Distress Signals . | . . . Times Spotted 23 | . 10 13 Peak Tracking Total 6 | . 3 6 Tactical Retreats . | . . . Traps | -11 -10 -9 ------- Run | Yrd Mat Mat Traps Triggered . | . . . Indirectly . | . . . Trap Hack Attempts . | . . . Triggered . | . . . Disarmed . | . . . Reprogrammed . | . . . Reused . | . . . Traps Extracted . | . . . Installed . | . . . Triggered . | . . . Machines | -11 -10 -9 ---------- Run | Yrd Mat Mat Machines Disabled 10 | . . 10 Max in Single Turn 5 | . . 5 Machines Repaired . | . . . Machines Dismantled . | . . . Machines Sabotaged . | . . . Overloaded Fab Kills . | . . . Hacking | -11 -10 -9 --------- Run | Yrd Mat Mat Machines Accessed . | . . . Terminals . | . . . Fabricators . | . . . Repair Stations . | . . . Recycling Units . | . . . Scanalyzers . | . . . Garrison Access . | . . . Total Hacks . | . . . Successful . | . . . Failed . | . . . Catastrophic . | . . . Database Lockouts . | . . . Manual . | . . . Terminals . | . . . Fabricators . | . . . Repair Stations . | . . . Recycling Units . | . . . Scanalyzers . | . . . Garrison Access . | . . . Terminal Hacks . | . . . Fabricator Hacks . | . . . Repair Station Hacks . | . . . Recycling Unit Hacks . | . . . Scanalyzer . | . . . Garrison Access Hacks . | . . . Unauthorized Hacks . | . . . Terminals . | . . . Fabricators . | . . . Repair Stations . | . . . Recycling Units . | . . . Scanalyzers . | . . . Garrison Access . | . . . Data Cores Recovered . | . . . Used . | . . . Hacking Detections . | . . . Full Trace Events . | . . . Feedback Events . | . . . Feedback Blocked . | . . . Robot Schematics Acquired . | . . . Robots Built . | . . . Authchips . | . . . Time . | . . . Total Robot Build Rating . | . . . Part Schematics Acquired . | . . . Parts Built . | . . . Authchips . | . . . Time . | . . . Total Part Build Rating . | . . . Parts Repaired . | . . . Time . | . . . Parts Recycled . | . . . Recycled Matter . | . . . Retrieved Matter . | . . . Retrieved Components . | . . . Parts Scanalyzed . | . . . Part Schematics Acquired . | . . . Parts Damaged . | . . . Bothacking | -11 -10 -9 ------------ Run | Yrd Mat Mat Used RIF Installer . | . . . Robots Hacked . | . . . Non-combat . | . . . Combat . | . . . Robot Hacks Applied . | . . . Relay Couplers Released . | . . . Fabnet Peak Effective % . | . . . Robots Rewired . | . . . Allies Hacked . | . . . Hacks Repelled . | . . . Allies | -11 -10 -9 -------- Run | Yrd Mat Mat Total Allies . | . . . Largest Group . | . . . Highest-Rated Group . | . . . Highest-Rated Ally . | . . . Total Orders . | . . . Ally Attacks . | . . . Total Damage . | . . . Kills . | . . . Allies Corrupted . | . . . Allies Melted . | . . . Intel | -11 -10 -9 ------- Run | Yrd Mat Mat Robot Analysis Total . | . . . Derelict Logs Recovered . | . . . Drone Launches . | . . . Drone Recoveries . | . . . Exploration | -11 -10 -9 ------------- Run | Yrd Mat Mat Turns Passed 816 | 92 420 304 Spaces Moved 475 | 73 222 180 Core 28 | 7 3 18 Treads . | . . . Legs 447 | 66 219 162 Wheels . | . . . Hover . | . . . Flight . | . . . Fastest Speed 50 | 50 100 120 Average Speed 122 | 113 119 128 Slowest Speed 300 | 120 120 300 Overloaded Moves . | . . . Propulsion Burnouts . | . . . Robots Hopped . | . . . Cave-ins Triggered . | . . . Exploration Rate (%) 18 | 5 26 24 Regions Visited 2 Branch Regions . Pre-discovered Areas . | . . . Known Exits Taken . | . . . Unknown Exits Taken 2 | 1 1 . Scrap Searched . | . . . Spaces Dug . | . . . Terrain Destroyed 145 | . . 145 Melee . | . . . Projectile . | . . . AOE 145 | . . 145 Terrain Rammed . | . . . Walls Destroyed . | . . . Machines Disabled . | . . . Actions | -11 -10 -9 --------- Run | Yrd Mat Mat Total 600 | 80 308 212 Wait 32 | . 32 . Move 473 | 72 221 180 Hop . | . . . Pick Up 11 | 2 7 2 Fast Attach 5 | 4 1 . Attach 8 | 1 3 4 Detach 1 | . . 1 Swap 1 | 1 . . Drop 3 | . 2 1 Fire 65 | . 41 24 Melee . | . . . Ram . | . . . Kick 1 | . 1 . Crush . | . . . Escape Stasis . | . . . Rewire . | . . . Trap . | . . . Miscellaneous . | . . . Route ------- -11/Scrapyard -10/Materials -9/Materials (discovered 1 exit: [*Mat]) History --------- Turn | Location | Event 4 | -11/Scrapyard | Discovered new exit (range 15) 93 | -11/Scrapyard | Entered Materials 315 | -10/Materials | Build established: Mutant 395 | -10/Materials | Core integrity fell below 50% 414 | -10/Materials | Lost 4 parts (2n2w) 436 | -10/Materials | Discovered new exit (range 16) 513 | -10/Materials | Entered another Materials area 513 | -9/Materials | Evolved 2 slots: Propulsion x2 684 | -9/Materials | Discovered new exit (range 15) 788 | -9/Materials | Core integrity fell below 50% 808 | -9/Materials | Core integrity fell below 20% 812 | -9/Materials | Lost 5 parts (1p3n1w) 817 | -9/Materials | Destroyed by Y-45 Defender with Beam Rifle Last Messages --------------- 00783_ U-05 Engineer builds a Wall. 00783_ U-05 Engineer lays Concrete. 00784_ Critical hit (Burn: +37). 00784_ K-01 Serf collects debris. 00784_ U-05 Engineer lays Concrete. 00785_ R-06 Scavenger collects Sml. Laser. 00787_ U-05 Engineer builds a Wall. 00790_ U-05 Engineer lays Concrete. 00793_ U-05 Engineer builds a Wall. 00793_ U-05 Engineer lays Concrete. 00797_ U-05 Engineer builds a Wall. 00798_ U-05 Engineer lays Concrete. 00800_ System corrupted: Matter fused (-7). 00800_ U-05 Engineer builds a Wall. 00804_ U-05 Engineer lays Concrete. 00811_ U-05 Engineer builds a Wall. 00811_ U-05 Engineer lays Concrete. 00812_ U-05 Engineer builds a Wall. 00815_ U-05 Engineer lays Concrete. 00817_ Critical hit (Burn: +37). Map ----- +----------------------------------------------------+ | | | | | | | | | | | | | ?????????????????????????????????????????????????? | | ?????????????????????????????????????????????????? | | ?????????????????????????????????????????????????? | | ?????????????????????????????????????????????????? | | ?????????????????????????????????????????????????? | | ?????????????????????????????????????????????????? | | ?????????????????????????????????????????????????? | | ?????????????????????????????????????????????????? | | ?????????????????????????????????????????????????? | | ?????????????????????????????????????????????????? | | ??????????????????????????######?######??????????? | | ??????????????????????????# #?"""""#?? ??????? | | ??????????????????????????# < ##""T""## ??????? | | ??????????????????????????# ?????? | | ??????????????????????????# ?????? | | ??????????????????????????# ????? | | ??????????????????###?????# u ????? | | ????????????####### ####### ????? | | ?#######????# ???? | | ?# ???# l@ ???? | | ?+ #??# Y ??? | | ?# ### g ???? | | ????## # u#######+### ???? | | ### # ## # #????? | | = # "# # !#????? | | *% # [ #[ # %#????? | | ##! # # #????? | | ???## # # #????? | | ????## # #" # % #????? | | ?????## ### ## # ###### | | ????+ #??##### # | | ????# ???????# #"" | | ????#### ????????##""##/#""##" [! [ | | ???????# ??????????##"" " != ####### | | ???????#????????????? # # " #### #???##? | | ?????????????????????## # ####??# #####"" | | ??????????????????????# # #?????# #""""" | | ??????????????????????# # #?????# # | | ??????????????????????# + #?????# " | | ??????????????????????######## #?????# " | | ?????????????????????????????# #?????# " | | ?????????????????????????????# #?????# " | | ????????????????????????????? #?????# " | | ?????????????????????????????# +?????# # | +----------------------------------------------------+ Best States ------------- Heat Dissipation 28 Energy Generation 14 Energy Capacity 250 Matter Stores 300 Matter Capacity 300 Sight Range 16 Terrain Scan Density 10 Evasion (%) 55 Item Schematics ----------------- None Robot Schematics ------------------ None Fabricated ------------ Nothing Alien Tech Used ----------------- None Achievements -------------- None Challenges ------------ None Game ------ Seed ConcussiveMyomerConstruct Manual? 0 Play Time 00:11:04 Cumulative 6.6 hours Start 2024.03.31 @ 23:44:05 End 2024.03.31 @ 23:52:40 Sessions 1 Manual Loads 0 Difficulty Rogue Special Mode None Game No. 32 Rogue 32 Adventurer 0 Explorer 0 Win Type - Total 0 Types 0/0/0/0/0/0/0/0/0 Lore% 8 Gallery% 9 Achievement% 10 Wizard Run 0 Options --------- Layout 1 ASCII 0 Keyboard 1 Movement Arrows Keybinds 0 Fullscreen 1 Font 24/Smallcaps Map View 50x35 Zoom Use 0% Tactical HUD 1 Map Filters NONE Filters NONE Steam 1 RUN: 0a0255b8-8792-4f48-a831-e85f54996487